[Event "44th Chess Olympiad Women 2022"]
[Site "Chennai"]
[Date "2022.08.01"]
[Round "4.65"]
[White "Elshalom Essayas Berhane"]
[Black "Farrugia, Jamie"]
[Result "1/2-1/2"]
[WhiteElo "1481"]
[BlackElo "1547"]
[Annotator "NA RC"]
[PlyCount "29"]
[EventDate "2022.??.??"]
[TimeControl "60"]

1. d4 {[%emt 0:00:04]} d5 {[%emt 0:00:07]} 2. Nf3 {[%emt 0:00:07]} Nf6 {
[%emt 0:00:14]} 3. Bf4 {[%emt 0:00:31]} c5 {[%emt 0:00:25]} 4. e3 {[%emt 0:00:
00]} Nc6 {[%emt 0:01:31]} 5. c4 {[%emt 0:00:48]} Qb6 {[%emt 0:10:31]} 6. Qb3 {
[%emt 0:01:18]} e6 {[%emt 0:09:54]} 7. Nc3 {[%emt 0:07:09]} Be7 {[%emt 0:18:31]
} 8. Be2 {[%emt 0:01:19]} O-O {[%emt 0:07:00]} 9. Qxb6 {[%emt 0:03:55]} axb6 {
[%emt 0:00:05]} 10. Bc7 {[%emt 0:00:12]} Bd8 {[%emt 0:01:37]} 11. Bd6 {[%emt 0:
00:00]} Be7 {[%emt 0:02:20]} 12. Bc7 {[%emt 0:08:40]} Bd8 {[%emt 0:00:39]} 13.
Bd6 {[%emt 0:00:39]} Be7 {[%emt 0:07:16]} 14. Bc7 {[%emt 0:00:56]} Bd8 {
[%emt 0:03:01]} 15. Bd6 {[%emt 0:01:10]} 1/2-1/2

[Event "44th Chess Olympiad Women 2022"]
[Site "Chennai"]
[Date "2022.08.01"]
[Round "4.65"]
[White "Thornton, Filipina"]
[Black "Makda Araya Fessehaye"]
[Result "1-0"]
[WhiteElo "1661"]
[BlackElo "1242"]
[Annotator "NA RC"]
[PlyCount "61"]
[EventDate "2022.??.??"]
[TimeControl "60"]

1. d4 {[%emt 0:00:10]} d5 {[%emt 0:00:28]} 2. c4 {[%emt 0:00:18]} Nf6 {[%emt 0:
00:00]} 3. Nc3 {[%emt 0:00:09]} e6 {[%emt 0:00:30]} 4. Nf3 {[%emt 0:00:14]} Be7
{[%emt 0:00:57]} 5. e3 {[%emt 0:03:43]} O-O {[%emt 0:00:50]} 6. Bd3 {[%emt 0:
00:00]} Nbd7 {[%emt 0:01:58]} 7. O-O {[%emt 0:00:25]} dxc4 {[%emt 0:00:30]} 8.
Bxc4 {[%emt 0:00:13]} a6 {[%emt 0:00:57]} 9. Re1 {[%emt 0:04:16]} b6 {[%emt 0:
00:00]} 10. e4 {[%emt 0:01:33]} Bb7 {[%emt 0:01:57]} 11. e5 {[%emt 0:03:47]}
Ne8 {[%emt 0:02:31]} 12. d5 {[%emt 0:03:38]} exd5 {[%emt 0:02:43]} 13. Nxd5 {
[%emt 0:00:25]} Bc5 {[%emt 0:01:39]} 14. Bg5 {[%emt 0:01:02]} Qb8 {[%emt 0:00:
00]} 15. Ne7+ {[%emt 0:06:05]} Kh8 {[%emt 0:01:00]} 16. Qxd7 {[%emt 0:00:49]}
Bc8 {[%emt 0:11:13]} 17. Qd3 {[%emt 0:01:27]} h6 {[%emt 0:02:19]} 18. Nh4 {
[%emt 0:03:31]} Be6 {[%emt 0:08:48]} 19. Bxe6 {[%emt 0:00:55]} Bxe7 {[%emt 0:
00:00]} 20. Bxe7 {[%emt 0:00:38]} fxe6 {[%emt 0:00:30]} 21. Bxf8 {[%emt 0:00:
00]} c5 {[%emt 0:03:22]} 22. Rad1 {[%emt 0:01:10]} Qc7 {[%emt 0:02:23]} 23. Bd6
{[%emt 0:01:28]} Qf7 {[%emt 0:00:27]} 24. Qf3 {[%emt 0:01:03]} Qa7 {[%emt 0:00:
00]} 25. Ng6+ {[%emt 0:04:26]} Kh7 {[%emt 0:01:16]} 26. Qe4 {[%emt 0:00:24]}
Kg8 {[%emt 0:01:17]} 27. Ne7+ {[%emt 0:00:59]} Kh8 {[%emt 0:00:40]} 28. Re3 {
[%emt 0:00:19]} Nxd6 {[%emt 0:02:21]} 29. exd6 {[%emt 0:00:09]} Re8 {[%emt 0:
00:00]} 30. Qxe6 {[%emt 0:00:24]} Kh7 {[%emt 0:01:32]} 31. Qg6+ {[%emt 0:00:09]
} 1-0

[Event "44th Chess Olympiad Women 2022"]
[Site "Chennai"]
[Date "2022.08.01"]
[Round "4.66"]
[White "Al Ghafri, Alanoud"]
[Black "De Souza, Ivana Claudia Eyram"]
[Result "1-0"]
[WhiteElo "1259"]
[BlackElo "1167"]
[Annotator "NA RC"]
[PlyCount "172"]
[EventDate "2022.??.??"]
[TimeControl "60"]

1. e4 {[%emt 0:00:02]} e5 {[%emt 0:00:07]} 2. Nf3 {[%emt 0:00:08]} Nc6 {
[%emt 0:00:18]} 3. d4 {[%emt 0:00:17]} exd4 {[%emt 0:02:01]} 4. Bc4 {[%emt 0:
00:00]} Be7 {[%emt 0:02:57]} 5. c3 {[%emt 0:02:43]} d6 {[%emt 0:01:47]} 6. cxd4
{[%emt 0:03:02]} Nf6 {[%emt 0:06:18]} 7. Nc3 {[%emt 0:00:21]} Bg4 {[%emt 0:00:
00]} 8. Be3 {[%emt 0:03:53]} O-O {[%emt 0:01:35]} 9. O-O {[%emt 0:00:56]} Nxe4
{[%emt 0:10:04]} 10. Nxe4 {[%emt 0:11:23]} d5 {[%emt 0:01:15]} 11. Bxd5 {
[%emt 0:00:07]} Qxd5 {[%emt 0:00:14]} 12. Nc3 {[%emt 0:01:58]} Qh5 {[%emt 0:00:
00]} 13. h3 {[%emt 0:03:00]} Bxf3 {[%emt 0:00:48]} 14. Qxf3 {[%emt 0:00:07]}
Qxf3 {[%emt 0:00:10]} 15. gxf3 {[%emt 0:00:06]} Rad8 {[%emt 0:05:29]} 16. Rad1
{[%emt 0:01:26]} a6 {[%emt 0:11:38]} 17. a3 {[%emt 0:00:23]} Bf6 {[%emt 0:00:
00]} 18. d5 {[%emt 0:05:14]} Ne7 {[%emt 0:06:43]} 19. Bc5 {[%emt 0:04:09]} Rfe8
{[%emt 0:01:59]} 20. d6 {[%emt 0:01:52]} cxd6 {[%emt 0:03:13]} 21. Bxd6 {
[%emt 0:00:24]} Nf5 {[%emt 0:02:32]} 22. Bb4 {[%emt 0:02:09]} Nh4 {[%emt 0:00:
00]} 23. f4 {[%emt 0:05:23]} Rd4 {[%emt 0:08:03]} 24. Nd5 {[%emt 0:04:44]} Rd8
{[%emt 0:06:59]} 25. Nxf6+ {[%emt 0:00:40]} gxf6 {[%emt 0:00:13]} 26. Rxd4 {
[%emt 0:00:57]} Rxd4 {[%emt 0:01:03]} 27. Kh2 {[%emt 0:01:21]} Nf5 {[%emt 0:00:
00]} 28. Rg1+ {[%emt 0:02:46]} Kh8 {[%emt 0:06:02]} 29. Bc3 {[%emt 0:00:08]}
Rd6 {[%emt 0:00:46]} 30. Re1 {[%emt 0:04:49]} Kg7 {[%emt 0:01:59]} 31. Re8 {
[%emt 0:01:02]} b5 {[%emt 0:02:26]} 32. Bb4 {[%emt 0:00:45]} Rd4 {[%emt 0:00:
00]} 33. Ra8 {[%emt 0:00:56]} Rxf4 {[%emt 0:00:32]} 34. Kg2 {[%emt 0:00:57]}
Rc4 {[%emt 0:00:30]} 35. Rxa6 {[%emt 0:00:49]} Rc2 {[%emt 0:01:25]} 36. Bc3 {
[%emt 0:00:07]} Ne3+ {[%emt 0:00:29]} 37. Kf3 {[%emt 0:00:47]} Nc4 {[%emt 0:00:
00]} 38. Bxf6+ {[%emt 0:00:40]} Kg6 {[%emt 0:01:10]} 39. b3 {[%emt 0:01:28]}
Nd2+ {[%emt 0:00:18]} 40. Kg2 {[%emt 0:01:46]} Nxb3 {[%emt 0:00:08]} 41. Rb6 {
[%emt 0:31:30]} Nd2 {[%emt 0:06:12]} 42. Be7+ {[%emt 0:00:00]} Kg7 {[%emt 0:00:
00]} 43. Rxb5 {[%emt 0:00:00]} Ne4 {[%emt 0:04:18]} 44. Kf3 {[%emt 0:00:00]}
Nxf2 {[%emt 0:06:15]} 45. Rg5+ {[%emt 0:00:00]} Kh6 {[%emt 0:00:48]} 46. Rg2 {
[%emt 0:00:00]} Rc3+ {[%emt 0:00:22]} 47. Kxf2 {[%emt 0:00:00]} Rxh3 {[%emt 0:
00:00]} 48. Rg3 {[%emt 0:00:00]} Rh2+ {[%emt 0:01:39]} 49. Kg1 {[%emt 0:00:00]}
Re2 {[%emt 0:01:49]} 50. Bb4 {[%emt 0:00:00]} Ra2 {[%emt 0:01:19]} 51. Rg2 {
[%emt 0:00:00]} Ra1+ {[%emt 0:01:04]} 52. Kh2 {[%emt 0:00:00]} f5 {[%emt 0:00:
00]} 53. Rf2 {[%emt 0:00:00]} Kg5 {[%emt 0:00:27]} 54. Bd2+ {[%emt 0:00:00]}
Kg4 {[%emt 0:00:29]} 55. Rg2+ {[%emt 0:00:00]} Kf3 {[%emt 0:00:25]} 56. Rg3+ {
[%emt 0:00:00]} Ke4 {[%emt 0:01:19]} 57. Re3+ {[%emt 0:00:00]} Kd5 {[%emt 0:00:
00]} 58. Bb4 {[%emt 0:00:00]} Kc4 {[%emt 0:01:13]} 59. Rf3 {[%emt 0:00:00]} Kb5
{[%emt 0:00:50]} 60. Rxf5+ {[%emt 0:00:00]} Ka4 {[%emt 0:00:11]} 61. Rh5 {
[%emt 0:00:00]} Kb3 {[%emt 0:00:25]} 62. Rxh7 {[%emt 0:00:00]} Ra2+ {[%emt 0:
00:00]} 63. Kg3 {[%emt 0:00:00]} Ka4 {[%emt 0:00:37]} 64. Kf3 {[%emt 0:00:00]}
Ra1 {[%emt 0:01:08]} 65. Ke3 {[%emt 0:00:00]} Kb3 {[%emt 0:00:12]} 66. Kd3 {
[%emt 0:00:00]} Rd1+ {[%emt 0:00:23]} 67. Ke2 {[%emt 0:00:00]} Ra1 {[%emt 0:00:
00]} 68. Kd2 {[%emt 0:00:00]} Ra2+ {[%emt 0:00:37]} 69. Kd3 {[%emt 0:00:00]}
Ra1 {[%emt 0:00:44]} 70. Rb7 {[%emt 0:00:00]} Ka4 {[%emt 0:01:11]} 71. Kc2 {
[%emt 0:00:00]} Ra2+ {[%emt 0:00:28]} 72. Kb1 {[%emt 0:00:00]} Re2 {[%emt 0:00:
00]} 73. Bc5 {[%emt 0:00:00]} Re1+ {[%emt 0:00:50]} 74. Kb2 {[%emt 0:00:00]}
Re2+ {[%emt 0:00:07]} 75. Kc3 {[%emt 0:00:00]} Ra2 {[%emt 0:00:58]} 76. Rb4+ {
[%emt 0:00:00]} Ka5 {[%emt 0:00:27]} 77. Rb8 {[%emt 0:00:00]} Ka4 {[%emt 0:00:
00]} 78. Bd6 {[%emt 0:00:00]} Ra1 {[%emt 0:00:36]} 79. Kc4 {[%emt 0:00:00]}
Rc1+ {[%emt 0:00:10]} 80. Kd5 {[%emt 0:00:00]} Rd1+ {[%emt 0:00:37]} 81. Kc6 {
[%emt 0:00:00]} Rc1+ {[%emt 0:00:41]} 82. Bc5 {[%emt 0:00:00]} Ra1 {[%emt 0:00:
00]} 83. Bb4 {[%emt 0:00:00]} Ra2 {[%emt 0:00:17]} 84. Kb6 {[%emt 0:00:00]} Rb2
{[%emt 0:00:45]} 85. Ka6 {[%emt 0:00:00]} Ra2 {[%emt 0:00:21]} 86. Bc5 {
[%emt 0:00:00]} Rb2 {[%emt 0:01:11]} 1-0

[Event "44th Chess Olympiad Women 2022"]
[Site "Chennai"]
[Date "2022.08.01"]
[Round "4.66"]
[White "Esse, Akua Kosife"]
[Black "Al Balushi, Mariya"]
[Result "0-1"]
[WhiteElo "1329"]
[BlackElo "1660"]
[Annotator "NA RC"]
[PlyCount "63"]
[EventDate "2022.??.??"]
[TimeControl "60"]

1. e4 {[%emt 0:00:05]} e5 {[%emt 0:00:11]} 2. Nf3 {[%emt 0:00:05]} Nc6 {
[%emt 0:00:09]} 3. Bc4 {[%emt 0:00:20]} Nf6 {[%emt 0:00:24]} 4. Nc3 {[%emt 0:
00:00]} Be7 {[%emt 0:00:38]} 5. O-O {[%emt 0:00:28]} O-O {[%emt 0:00:17]} 6. d4
{[%emt 0:02:20]} exd4 {[%emt 0:02:07]} 7. Nxd4 {[%emt 0:00:24]} Nxd4 {[%emt 0:
00:00]} 8. Qxd4 {[%emt 0:00:12]} d6 {[%emt 0:04:03]} 9. Re1 {[%emt 0:04:31]}
Ng4 {[%emt 0:04:30]} 10. Bf4 {[%emt 0:10:27]} Bf6 {[%emt 0:05:58]} 11. Qd2 {
[%emt 0:03:03]} Ne5 {[%emt 0:16:44]} 12. Bb3 {[%emt 0:03:51]} Re8 {[%emt 0:00:
00]} 13. Re3 {[%emt 0:12:23]} Bg5 {[%emt 0:13:01]} 14. Rg3 {[%emt 0:08:15]}
Bxf4 {[%emt 0:01:12]} 15. Qxf4 {[%emt 0:00:39]} Ng6 {[%emt 0:00:42]} 16. Bxf7+
{[%emt 0:04:15]} Kh8 {[%emt 0:01:09]} 17. Bxg6 {[%emt 0:00:50]} hxg6 {[%emt 0:
00:00]} 18. Rxg6 {[%emt 0:03:49]} Rf8 {[%emt 0:01:17]} 19. Qd2 {[%emt 0:01:14]}
Bd7 {[%emt 0:04:59]} 20. Qd4 {[%emt 0:02:14]} Rf7 {[%emt 0:00:43]} 21. Re1 {
[%emt 0:02:18]} Qh4 {[%emt 0:00:52]} 22. g3 {[%emt 0:02:28]} Qh5 {[%emt 0:00:
00]} 23. e5 {[%emt 0:02:33]} Qxg6 {[%emt 0:00:26]} 24. e6 {[%emt 0:00:26]} Bxe6
{[%emt 0:00:48]} 25. Rxe6 {[%emt 0:00:51]} Qxe6 {[%emt 0:00:20]} 26. Ne4 {
[%emt 0:02:07]} Qe5 {[%emt 0:00:53]} 27. Qxe5 {[%emt 0:00:36]} dxe5 {[%emt 0:
00:00]} 28. Ng5 {[%emt 0:00:43]} Rd7 {[%emt 0:00:37]} 29. Kf1 {[%emt 0:00:42]}
Rd2 {[%emt 0:00:12]} 30. Nf7+ {[%emt 0:00:14]} Kg8 {[%emt 0:00:15]} 31. Nxe5 {
[%emt 0:00:11]} Rxc2 {[%emt 0:00:17]} 32. Nd3 {[%emt 0:00:30]} 0-1

[Event "44th Chess Olympiad Women 2022"]
[Site "Chennai"]
[Date "2022.08.01"]
[Round "4.67"]
[White "Aishath Alya Mohamed Shareef"]
[Black "Gusmao, Maria do Ceu"]
[Result "1-0"]
[WhiteElo "1110"]
[BlackElo "1442"]
[Annotator "NA RC"]
[PlyCount "79"]
[EventDate "2022.??.??"]
[TimeControl "60"]

1. d4 {[%emt 0:00:04]} Nf6 {[%emt 0:00:15]} 2. Bf4 {[%emt 0:00:14]} e6 {
[%emt 0:02:40]} 3. Nf3 {[%emt 0:00:38]} c5 {[%emt 0:01:21]} 4. c3 {[%emt 0:00:
00]} Nc6 {[%emt 0:00:52]} 5. e3 {[%emt 0:00:59]} Be7 {[%emt 0:03:04]} 6. Bd3 {
[%emt 0:03:16]} d5 {[%emt 0:02:23]} 7. Nbd2 {[%emt 0:01:00]} O-O {[%emt 0:00:
00]} 8. Ne5 {[%emt 0:02:52]} cxd4 {[%emt 0:06:06]} 9. exd4 {[%emt 0:02:06]} g6
{[%emt 0:05:33]} 10. g4 {[%emt 0:03:39]} Nd7 {[%emt 0:04:43]} 11. Nxd7 {
[%emt 0:02:54]} Bxd7 {[%emt 0:01:34]} 12. Bg3 {[%emt 0:04:29]} f5 {[%emt 0:00:
00]} 13. f3 {[%emt 0:06:17]} Re8 {[%emt 0:08:56]} 14. h4 {[%emt 0:04:59]} Bf6 {
[%emt 0:01:54]} 15. g5 {[%emt 0:02:15]} Bg7 {[%emt 0:01:01]} 16. f4 {[%emt 0:
00:00]} e5 {[%emt 0:08:55]} 17. dxe5 {[%emt 0:08:56]} Nxe5 {[%emt 0:02:32]} 18.
fxe5 {[%emt 0:01:02]} Bxe5 {[%emt 0:00:25]} 19. Bxe5 {[%emt 0:02:05]} Rxe5+ {
[%emt 0:00:57]} 20. Be2 {[%emt 0:01:17]} Qe7 {[%emt 0:08:07]} 21. Kf1 {[%emt 0:
00:00]} Re8 {[%emt 0:05:00]} 22. Bf3 {[%emt 0:01:08]} Bb5+ {[%emt 0:04:33]} 23.
Kg2 {[%emt 0:02:10]} Re2+ {[%emt 0:07:04]} 24. Bxe2 {[%emt 0:03:24]} Bxe2 {
[%emt 0:01:10]} 25. Qg1 {[%emt 0:04:55]} Qd7 {[%emt 0:03:30]} 26. Re1 {[%emt 0:
00:00]} Qb5 {[%emt 0:01:37]} 27. Qf2 {[%emt 0:03:16]} Qd3 {[%emt 0:01:26]} 28.
Nf3 {[%emt 0:03:24]} Bxf3+ {[%emt 0:01:22]} 29. Qxf3 {[%emt 0:00:23]} Qd2+ {
[%emt 0:02:13]} 30. Qf2 {[%emt 0:01:37]} Qxf2+ {[%emt 0:01:02]} 31. Kxf2 {
[%emt 0:00:06]} Rc8 {[%emt 0:00:05]} 32. Re7 {[%emt 0:00:48]} b5 {[%emt 0:00:
00]} 33. Rd7 {[%emt 0:00:41]} b4 {[%emt 0:00:15]} 34. Rh3 {[%emt 0:01:34]} a5 {
[%emt 0:00:26]} 35. Rxd5 {[%emt 0:00:14]} a4 {[%emt 0:00:26]} 36. a3 {[%emt 0:
00:00]} bxc3 {[%emt 0:00:45]} 37. Rxc3 {[%emt 0:02:43]} Rb8 {[%emt 0:00:21]}
38. Rc2 {[%emt 0:00:41]} Kf7 {[%emt 0:00:23]} 39. Re2 {[%emt 0:00:46]} Rb7 {
[%emt 0:00:47]} 40. Ra5 {[%emt 0:03:28]} 1-0

[Event "44th Chess Olympiad Women 2022"]
[Site "Chennai"]
[Date "2022.08.01"]
[Round "4.67"]
[White "Nihaya, Ahmed"]
[Black "Tilman, Zulmira Americo"]
[Result "1-0"]
[WhiteElo "1233"]
[BlackElo "1255"]
[Annotator "NA RC"]
[PlyCount "49"]
[EventDate "2022.??.??"]
[TimeControl "60"]

1. e4 {[%emt 0:00:01]} e5 {[%emt 0:00:32]} 2. Nf3 {[%emt 0:00:05]} Nc6 {
[%emt 0:00:28]} 3. d4 {[%emt 0:00:10]} d6 {[%emt 0:01:53]} 4. dxe5 {[%emt 0:00:
00]} Qe7 {[%emt 0:02:46]} 5. exd6 {[%emt 0:04:51]} Qxe4+ {[%emt 0:01:14]} 6.
Qe2 {[%emt 0:01:28]} Qxe2+ {[%emt 0:00:19]} 7. Bxe2 {[%emt 0:00:04]} cxd6 {
[%emt 0:00:10]} 8. O-O {[%emt 0:01:31]} Nf6 {[%emt 0:00:34]} 9. Re1 {[%emt 0:
00:00]} Be7 {[%emt 0:00:27]} 10. Bb5 {[%emt 0:00:13]} O-O {[%emt 0:00:33]} 11.
Bxc6 {[%emt 0:00:06]} bxc6 {[%emt 0:04:15]} 12. Rxe7 {[%emt 0:00:10]} Ba6 {
[%emt 0:02:00]} 13. Nc3 {[%emt 0:01:10]} h6 {[%emt 0:04:44]} 14. Bf4 {[%emt 0:
00:00]} Rfd8 {[%emt 0:05:45]} 15. Rae1 {[%emt 0:00:53]} g5 {[%emt 0:04:54]} 16.
Be3 {[%emt 0:01:33]} Bc4 {[%emt 0:02:05]} 17. Rxa7 {[%emt 0:01:11]} Rab8 {
[%emt 0:02:13]} 18. b3 {[%emt 0:00:21]} Bd5 {[%emt 0:01:40]} 19. Nd4 {[%emt 0:
00:00]} Rbc8 {[%emt 0:01:51]} 20. Nf5 {[%emt 0:00:26]} Kh7 {[%emt 0:02:28]} 21.
Bd4 {[%emt 0:00:10]} Nh5 {[%emt 0:04:59]} 22. Nxd5 {[%emt 0:00:40]} cxd5 {
[%emt 0:00:09]} 23. Rxf7+ {[%emt 0:00:15]} Kg6 {[%emt 0:01:00]} 24. Nxh6 {
[%emt 0:00:41]} Rf8 {[%emt 0:01:25]} 25. Re6+ {[%emt 0:00:10]} 1-0

[Event "44th Chess Olympiad Women 2022"]
[Site "Chennai"]
[Date "2022.08.01"]
[Round "4.67"]
[White "da Silva, Sonizia A.Tilman"]
[Black "Nuha, Rilwan"]
[Result "1/2-1/2"]
[WhiteElo "1507"]
[BlackElo "1068"]
[Annotator "NA RC"]
[PlyCount "141"]
[EventDate "2022.??.??"]
[TimeControl "60"]

1. d4 {[%emt 0:00:01]} Nf6 {[%emt 0:00:09]} 2. Nc3 {[%emt 0:00:14]} e6 {
[%emt 0:00:10]} 3. e4 {[%emt 0:00:40]} Bb4 {[%emt 0:00:40]} 4. Bd3 {[%emt 0:00:
00]} b6 {[%emt 0:04:08]} 5. Bd2 {[%emt 0:02:51]} Bb7 {[%emt 0:00:21]} 6. Nge2 {
[%emt 0:02:57]} O-O {[%emt 0:02:25]} 7. a3 {[%emt 0:02:37]} Be7 {[%emt 0:04:52]
} 8. Ng3 {[%emt 0:03:31]} c5 {[%emt 0:03:49]} 9. dxc5 {[%emt 0:04:12]} Bxc5 {
[%emt 0:00:25]} 10. O-O {[%emt 0:02:10]} Nc6 {[%emt 0:01:06]} 11. Nh5 {[%emt 0:
00:00]} Ne5 {[%emt 0:09:09]} 12. Bg5 {[%emt 0:01:28]} Be7 {[%emt 0:00:40]} 13.
Bb5 {[%emt 0:08:57]} Nxe4 {[%emt 0:07:56]} 14. Bxe7 {[%emt 0:01:55]} Qxe7 {
[%emt 0:02:00]} 15. Nxe4 {[%emt 0:03:08]} Bxe4 {[%emt 0:00:41]} 16. Qd4 {
[%emt 0:03:24]} Qg5 {[%emt 0:04:51]} 17. Qxe4 {[%emt 0:01:19]} Qxh5 {[%emt 0:
00:00]} 18. Be2 {[%emt 0:00:51]} d5 {[%emt 0:02:42]} 19. Qe3 {[%emt 0:07:02]}
Qf5 {[%emt 0:03:02]} 20. b3 {[%emt 0:07:19]} Ng6 {[%emt 0:02:28]} 21. Bd3 {
[%emt 0:03:29]} Qf6 {[%emt 0:00:33]} 22. Qh3 {[%emt 0:02:35]} h6 {[%emt 0:00:
00]} 23. Rae1 {[%emt 0:05:11]} Nf4 {[%emt 0:01:46]} 24. Qf3 {[%emt 0:00:28]}
Rac8 {[%emt 0:07:21]} 25. Re3 {[%emt 0:04:34]} Nxd3 {[%emt 0:05:32]} 26. Qxf6 {
[%emt 0:01:10]} gxf6 {[%emt 0:00:09]} 27. cxd3 {[%emt 0:00:29]} Rc3 {[%emt 0:
00:00]} 28. Rb1 {[%emt 0:02:11]} Rfc8 {[%emt 0:00:35]} 29. g3 {[%emt 0:00:59]}
Rc1+ {[%emt 0:02:07]} 30. Rxc1 {[%emt 0:00:09]} Rxc1+ {[%emt 0:00:02]} 31. Kg2
{[%emt 0:00:25]} d4 {[%emt 0:01:48]} 32. Re4 {[%emt 0:01:46]} e5 {[%emt 0:00:
00]} 33. f4 {[%emt 0:00:51]} Rc3 {[%emt 0:00:57]} 34. fxe5 {[%emt 0:00:56]}
fxe5 {[%emt 0:00:29]} 35. Rxe5 {[%emt 0:00:19]} Rxd3 {[%emt 0:00:33]} 36. Rb5 {
[%emt 0:00:50]} Rd2+ {[%emt 0:03:03]} 37. Kg1 {[%emt 0:01:04]} Ra2 {[%emt 0:00:
00]} 38. a4 {[%emt 0:00:39]} d3 {[%emt 0:00:31]} 39. Rd5 {[%emt 0:02:12]} d2 {
[%emt 0:00:40]} 40. Kf1 {[%emt 0:00:15]} Rb2 {[%emt 0:09:50]} 41. Ke2 {[%emt 0:
00:00]} d1=Q+ {[%emt 0:30:57]} 42. Kxd1 {[%emt 0:00:12]} Rxb3 {[%emt 0:00:52]}
43. Kc2 {[%emt 0:02:34]} Rb4 {[%emt 0:04:41]} 44. a5 {[%emt 0:01:36]} bxa5 {
[%emt 0:05:57]} 45. Rxa5 {[%emt 0:00:29]} Rb7 {[%emt 0:00:22]} 46. h4 {[%emt 0:
00:00]} Kg7 {[%emt 0:01:10]} 47. Kd2 {[%emt 0:00:56]} Rb3 {[%emt 0:00:34]} 48.
g4 {[%emt 0:01:02]} Rb4 {[%emt 0:00:29]} 49. g5 {[%emt 0:01:15]} Rxh4 {[%emt 0:
00:00]} 50. gxh6+ {[%emt 0:00:17]} Kxh6 {[%emt 0:00:00]} 51. Rxa7 {[%emt 0:00:
00]} f5 {[%emt 0:00:00]} 52. Ke3 {[%emt 0:00:00]} Kg6 {[%emt 0:00:00]} 53. Kf3
{[%emt 0:00:00]} Rb4 {[%emt 0:00:00]} 54. Ra6+ {[%emt 0:00:00]} Kg5 {[%emt 0:
00:00]} 55. Ra5 {[%emt 0:00:00]} Rb3+ {[%emt 0:00:00]} 56. Kg2 {[%emt 0:00:00]}
Kg4 {[%emt 0:00:00]} 57. Ra8 {[%emt 0:00:00]} Rb2+ {[%emt 0:00:00]} 58. Kf1 {
[%emt 0:00:00]} Kf3 {[%emt 0:00:00]} 59. Ke1 {[%emt 0:00:00]} f4 {[%emt 0:00:
00]} 60. Rf8 {[%emt 0:00:00]} Rb4 {[%emt 0:00:00]} 61. Kd2 {[%emt 0:00:00]} Kf2
{[%emt 0:00:00]} 62. Kc3 {[%emt 0:00:16]} Re4 {[%emt 0:00:00]} 63. Kd3 {
[%emt 0:00:24]} Re3+ {[%emt 0:00:00]} 64. Kd2 {[%emt 0:01:48]} f3 {[%emt 0:00:
00]} 65. Rh8 {[%emt 0:01:52]} Re2+ {[%emt 0:00:00]} 66. Kd1 {[%emt 0:04:30]}
Re1+ {[%emt 0:00:00]} 67. Kd2 {[%emt 0:00:28]} Rg1 {[%emt 0:00:19]} 68. Rf8 {
[%emt 0:01:47]} Rg2 {[%emt 0:00:50]} 69. Kd3 {[%emt 0:01:18]} Rg4 {[%emt 0:00:
00]} 70. Rf7 {[%emt 0:02:29]} Ra4 {[%emt 0:02:04]} 71. Rf6 {[%emt 0:00:28]}
1/2-1/2

[Event "44th Chess Olympiad Women 2022"]
[Site "Chennai"]
[Date "2022.08.01"]
[Round "4.67"]
[White "dos Santos, Elfiana"]
[Black "Kiyan Mohamed, Usamath"]
[Result "0-1"]
[WhiteElo "1560"]
[BlackElo "1100"]
[Annotator "NA RC"]
[PlyCount "58"]
[EventDate "2022.??.??"]
[TimeControl "60"]

1. e4 {[%emt 0:00:02]} e5 {[%emt 0:00:06]} 2. Nf3 {[%emt 0:00:13]} Nc6 {
[%emt 0:00:06]} 3. Bc4 {[%emt 0:00:30]} Bc5 {[%emt 0:00:08]} 4. O-O {[%emt 0:
00:00]} Nf6 {[%emt 0:00:14]} 5. d3 {[%emt 0:00:50]} O-O {[%emt 0:00:28]} 6. Nc3
{[%emt 0:01:13]} d6 {[%emt 0:00:34]} 7. Bg5 {[%emt 0:00:54]} Be6 {[%emt 0:00:
00]} 8. b3 {[%emt 0:05:02]} a6 {[%emt 0:14:05]} 9. a3 {[%emt 0:00:49]} Nd4 {
[%emt 0:05:29]} 10. b4 {[%emt 0:06:48]} Ba7 {[%emt 0:02:02]} 11. h3 {[%emt 0:
00:00]} Qe7 {[%emt 0:06:46]} 12. Bxe6 {[%emt 0:02:46]} fxe6 {[%emt 0:01:40]}
13. Nb1 {[%emt 0:04:56]} Qf7 {[%emt 0:08:57]} 14. Nbd2 {[%emt 0:00:27]} Qg6 {
[%emt 0:06:02]} 15. c3 {[%emt 0:05:12]} Nxf3+ {[%emt 0:00:19]} 16. Nxf3 {
[%emt 0:00:24]} Nd7 {[%emt 0:00:59]} 17. Rc1 {[%emt 0:04:41]} Rf7 {[%emt 0:00:
00]} 18. c4 {[%emt 0:01:20]} Raf8 {[%emt 0:05:20]} 19. Bh4 {[%emt 0:02:42]}
Rxf3 {[%emt 0:01:12]} 20. Kh1 {[%emt 0:02:22]} R3f7 {[%emt 0:04:26]} 21. Qe2 {
[%emt 0:01:09]} Qh6 {[%emt 0:05:24]} 22. Bg3 {[%emt 0:01:51]} Nf6 {[%emt 0:00:
00]} 23. f3 {[%emt 0:02:23]} Nh5 {[%emt 0:01:55]} 24. Bf2 {[%emt 0:01:05]} Bxf2
{[%emt 0:02:04]} 25. Rxf2 {[%emt 0:01:05]} Ng3+ {[%emt 0:00:15]} 26. Kg1 {
[%emt 0:01:22]} Nxe2+ {[%emt 0:00:31]} 27. Rxe2 {[%emt 0:02:24]} Qxc1+ {
[%emt 0:00:03]} 28. Kh2 {[%emt 0:00:24]} Qf4+ {[%emt 0:01:12]} 29. Kg1 {
[%emt 0:00:18]} Qg3 {[%emt 0:01:00]} 0-1

[Event "44th Chess Olympiad Women 2022"]
[Site "Chennai"]
[Date "2022.08.01"]
[Round "4.78"]
[White "Ali, Amy"]
[Black "Comas Colon, Rinelly M."]
[Result "0-1"]
[WhiteElo "1361"]
[BlackElo "1585"]
[Annotator "NA RC"]
[PlyCount "72"]
[EventDate "2022.??.??"]
[TimeControl "60"]

1. e4 {[%emt 0:00:05]} e5 {[%emt 0:00:10]} 2. Nf3 {[%emt 0:00:13]} f6 {[%emt 0:
00:00]} 3. Bc4 {[%emt 0:00:37]} Bc5 {[%emt 0:00:54]} 4. b3 {[%emt 0:00:14]} Nc6
{[%emt 0:00:30]} 5. Ba3 {[%emt 0:00:17]} b6 {[%emt 0:01:13]} 6. Bxc5 {[%emt 0:
00:00]} bxc5 {[%emt 0:00:35]} 7. Nxe5 {[%emt 0:00:21]} Nxe5 {[%emt 0:00:32]} 8.
f4 {[%emt 0:00:39]} Nxc4 {[%emt 0:00:37]} 9. bxc4 {[%emt 0:00:16]} Qe7 {
[%emt 0:00:30]} 10. O-O {[%emt 0:00:58]} Bb7 {[%emt 0:00:13]} 11. d3 {[%emt 0:
00:00]} Nh6 {[%emt 0:01:14]} 12. f5 {[%emt 0:00:48]} c6 {[%emt 0:00:35]} 13.
Qh5+ {[%emt 0:00:26]} Nf7 {[%emt 0:00:37]} 14. Qf3 {[%emt 0:00:52]} Rd8 {
[%emt 0:00:38]} 15. Nc3 {[%emt 0:00:29]} d6 {[%emt 0:01:11]} 16. g4 {[%emt 0:
00:00]} Rd7 {[%emt 0:01:36]} 17. Rae1 {[%emt 0:00:39]} O-O {[%emt 0:01:54]} 18.
h4 {[%emt 0:00:22]} Ne5 {[%emt 0:01:07]} 19. Qh3 {[%emt 0:00:27]} Re8 {[%emt 0:
00:00]} 20. g5 {[%emt 0:00:16]} Qd8 {[%emt 0:00:35]} 21. Rf2 {[%emt 0:01:04]}
d5 {[%emt 0:00:25]} 22. Rg2 {[%emt 0:01:07]} dxc4 {[%emt 0:01:01]} 23. gxf6 {
[%emt 0:01:45]} cxd3 {[%emt 0:00:32]} 24. cxd3 {[%emt 0:01:24]} Rxd3 {[%emt 0:
00:00]} 25. Qh2 {[%emt 0:01:03]} Rxc3 {[%emt 0:00:25]} 26. Qf4 {[%emt 0:00:40]}
Nf3+ {[%emt 0:00:48]} 27. Kf1 {[%emt 0:00:33]} Ba6+ {[%emt 0:00:57]} 28. Ree2 {
[%emt 0:00:44]} Qd1+ {[%emt 0:01:21]} 29. Kf2 {[%emt 0:00:31]} Qxe2+ {[%emt 0:
00:00]} 30. Kg3 {[%emt 0:00:23]} Ne1+ {[%emt 0:00:42]} 31. Qe3 {[%emt 0:03:09]}
Qxe3+ {[%emt 0:00:22]} 32. Kg4 {[%emt 0:02:07]} Qf3+ {[%emt 0:00:42]} 33. Kg5 {
[%emt 0:00:26]} Nxg2 {[%emt 0:01:10]} 34. fxg7 {[%emt 0:00:39]} Qxe4 {[%emt 0:
00:00]} 35. f6 {[%emt 0:00:49]} Re5+ {[%emt 0:01:05]} 36. Kh6 {[%emt 0:00:15]}
Qg6# {[%emt 0:01:02]} 0-1